bitfinex/quotes_ETHUSD_20260313
["timestamp","ask_amount","ask_price","bid_price","bid_amount"]
[1773433487844,0.002,2111.8,2111.3,0.41424996]
[1773433488004,1.18573931,2112.0,2111.2,0.41424996]
[1773433488005,0.47664178,2111.9,2111.2,0.41424996]
[1773433488717,0.47664178,2111.9,2111.3,0.04736418]
[1773433488918,0.47664178,2111.9,2111.4,0.41424996]
[1773433489535,1.66044683,2111.9,2111.4,1.59827952]
[1773433489729,0.47664178,2111.8,2111.4,1.59827952]
[1773433490639,0.47664178,2111.8,2111.5,0.46361863]
[1773433490820,0.47664178,2111.8,2111.6,1.796]
[1773433493147,1.66047284,2111.8,2111.6,1.796]
[1773433493311,0.50361164,2111.7,2111.1,1.18420969]
[1773433493511,0.50361164,2111.7,2111.2,1.799]
[1773433496187,0.46808106,2111.5,2111.1,0.001]
[1773433496441,0.50361164,2111.5,2110.9,0.001]
[1773433497518,0.50361164,2111.5,2111.0,1.802]
[1773433498337,1.65212955,2111.4,2111.3,0.001]
[1773433498521,0.46808106,2111.3,2111.0,1.802]
[1773433498727,0.46808106,2111.3,2111.0,1.803]
[1773433499126,4.73796968,2111.7,2111.1,0.49464483]
[1773433499127,0.002,2111.7,2111.1,0.49464483]
[1773433500362,0.47008106,2111.7,2111.3,0.45910719]
[1773433500563,0.46808106,2111.5,2111.4,1.803]
[1773433501076,0.46808106,2111.5,2111.0,0.001]
[1773433501368,0.50361164,2111.4,2111.0,0.001]
[1773433501574,0.46808106,2111.4,2111.0,0.001]
[1773433502386,1.65218564,2111.3,2111.1,1.79]
[1773433502953,0.50361164,2111.2,2111.0,0.001]
[1773433503856,0.50361164,2111.1,2111.0,0.001]
[1773433504377,1.68782839,2111.1,2111.0,1.791]
[1773433504551,0.50361164,2111.1,2111.0,1.791]
[1773433506086,1.68782839,2111.1,2111.0,1.791]
[1773433506292,0.50361164,2111.1,2110.9,0.001]
[1773433506495,1.68782899,2111.1,2110.9,0.001]
[1773433506991,0.50361164,2111.1,2110.9,0.001]
[1773433507549,0.46808106,2111.0,2110.9,0.001]
[1773433507768,0.46808106,2111.0,2110.9,1.796]
[1773433508453,0.46808106,2111.2,2110.9,1.796]
[1773433508676,0.03553058,2111.1,2110.9,1.796]
[1773433508884,0.50361164,2111.1,2110.9,1.796]
[1773433510388,0.50361164,2111.1,2110.8,0.001]
[1773433510689,0.46808106,2110.9,2110.6,1.561]
[1773433511684,0.50361164,2110.9,2110.6,1.561]
[1773433512076,0.50361164,2110.9,2110.2,0.45910719]
[1773433512653,0.46808106,2110.7,2110.2,0.45910719]
[1773433512984,0.46808106,2110.7,2110.0,1.18479018]
[1773433513281,0.46808106,2110.5,2110.0,1.18479018]
[1773433513468,0.46808106,2110.5,2110.1,0.45910719]
[1773433513984,0.46808106,2110.5,2110.2,1.794]
[1773433514382,0.46808106,2110.5,2110.1,0.45910719]
[1773433514554,0.46808106,2110.5,2110.3,1.795]
[1773433515688,1.22005428,2110.6,2110.3,1.795]
[1773433516293,0.46808106,2110.5,2110.3,1.795]
[1773433516805,0.03553058,2110.4,2109.9,0.45910719]
[1773433518371,0.03553058,2110.4,2110.1,0.45910719]
[1773433518740,0.03553058,2110.4,2110.2,1.799]
[1773433518990,0.03553058,2110.4,2110.2,2.25810719]
[1773433519695,0.46808106,2110.5,2110.2,1.799]
[1773433519860,0.50361164,2110.5,2110.2,1.799]
[1773433524292,0.50361164,2110.5,2110.2,2.28203193]
[1773433524500,0.49736343,2110.6,2110.3,0.49989853]
[1773433525296,0.49736343,2110.6,2110.4,0.001]
[1773433525959,0.49936343,2110.6,2110.4,0.001]
[1773433527997,1.68386805,2110.6,2110.4,0.001]
[1773433528996,0.49736343,2110.5,2110.4,0.001]
[1773433533670,0.002,2110.6,2110.4,0.50089853]
[1773433534528,0.002,2110.6,2110.5,0.49989853]
[1773433540173,0.002,2110.6,2110.4,0.001]
[1773433541007,0.002,2110.6,2110.4,0.50089853]
[1773433542109,0.49936343,2110.6,2110.4,0.001]
[1773433542712,0.002,2110.6,2110.4,0.50089853]
[1773433551521,0.002,2110.6,2110.4,0.001]
[1773433551522,0.47118368,2110.6,2110.4,0.001]
[1773433551720,0.47118368,2110.6,2110.5,1.806]
[1773433555894,0.002,2110.9,2110.6,0.47683474]
[1773433556095,0.46918368,2110.8,2110.5,1.806]
[1773433556930,0.46918368,2110.8,2110.5,2.28283474]
[1773433557429,1.65358257,2110.8,2110.5,2.28283474]
[1773433557827,0.46918368,2110.7,2110.5,1.806]
[1773433558001,0.46918368,2110.7,2110.4,0.001]
[1773433559232,1.65364856,2110.7,2110.5,1.8]
[1773433560412,0.46918368,2110.6,2110.5,1.8]
[1773433560736,0.46918368,2110.6,2110.4,0.001]
[1773433561329,1.65368637,2110.6,2110.4,0.001]
[1773433561742,1.65368637,2110.6,2110.5,1.801]
[1773433562103,1.65368637,2110.6,2110.4,0.001]
[1773433563324,0.46918368,2110.5,2110.4,0.001]
[1773433563645,5.20852655,2110.9,2110.5,0.47683474]
[1773433563812,0.46918368,2110.8,2110.4,2.27983474]
[1773433565427,4.73934287,2110.9,2110.4,2.27983474]
[1773433565428,1.65362486,2110.7,2110.4,2.27983474]
[1773433565737,1.65362486,2110.7,2110.6,0.001]
[1773433567439,1.65362486,2110.7,2110.4,2.27983474]
[1773433567939,1.65561362,2110.8,2110.4,3.46444306]
[1773433568441,1.65557908,2110.8,2110.5,0.47683474]
[1773433568634,0.002,2110.9,2110.5,0.47683474]
[1773433568938,0.46918368,2110.8,2110.5,0.47683474]
[1773433570241,0.46918368,2110.8,2110.5,1.66137902]
[1773433573139,1.18637658,2110.9,2110.6,1.804]
[1773433573456,1.65556026,2110.9,2110.6,1.804]
[1773433573614,1.18637658,2110.9,2110.6,1.804]
[1773433573815,0.46918368,2110.8,2110.6,1.804]
[1773433575054,1.6535829,2110.8,2110.6,1.804]
[1773433577447,0.46918368,2110.7,2110.6,1.804]
[1773433577759,0.46918368,2110.7,2110.4,0.47783474]
[1773433578947,0.46918368,2110.7,2110.5,1.804]
[1773433579635,1.65363034,2110.7,2110.6,0.001]
[1773433579937,0.46918368,2110.6,2110.2,0.47683474]
[1773433580156,0.46918368,2110.6,2110.3,2.28083474]
[1773433580347,1.1844761,2110.7,2110.4,0.47683474]
[1773433581746,0.46040497,2110.7,2110.4,0.47683474]
[1773433584364,0.46040497,2110.3,2110.1,1.804]
[1773433584573,0.46040497,2110.5,2109.8,0.47427825]
[1773433584737,1.64488947,2110.7,2110.0,0.47427825]
[1773433584937,1.64488947,2110.7,2110.2,0.47427825]
[1773433585137,1.64488947,2110.7,2110.3,0.52166487]
[1773433585683,1.64488947,2110.7,2110.4,1.784]
[1773433585975,0.46040497,2110.6,2110.4,1.784]
[1773433588571,0.46040497,2110.5,2110.1,1.65901948]
[1773433589570,0.46040497,2110.5,2110.2,0.47427825]
[1773433589777,0.46040497,2110.5,2110.2,1.65897831]
[1773433590090,0.46040497,2110.5,2110.3,1.79]
[1773433590792,1.64486419,2110.7,2110.3,2.26427825]
[1773433592694,0.46040497,2110.6,2110.5,0.001]
[1773433592866,0.002,2110.5,2110.3,2.26427825]
[1773433593193,0.002,2110.5,2110.3,2.26527825]
[1773433599806,0.46040497,2110.3,2110.0,0.001]
[1773433599989,0.46040497,2110.3,2109.9,0.47527825]
[1773433601172,0.46040497,2110.3,2110.0,1.779]
[1773433601981,1.18472182,2110.2,2110.0,1.779]
[1773433602168,1.64512679,2110.2,2110.0,1.779]
[1773433602870,0.46040497,2110.2,2110.0,1.779]
[1773433604106,1.64513619,2110.2,2110.0,1.779]
[1773433604404,1.64513303,2110.2,2110.0,1.779]
[1773433605901,0.46040497,2110.2,2110.0,1.779]
[1773433606101,1.6451281,2110.2,2110.0,1.779]
[1773433606312,1.18472313,2110.2,2110.0,1.779]
[1773433606500,1.18466568,2110.3,2110.0,1.779]
[1773433606705,0.48695765,2110.2,2110.0,1.779]
[1773433607108,0.002,2110.5,2110.1,0.47527825]
[1773433607275,1.18656443,2110.5,2110.1,0.47527825]
[1773433607792,0.48895765,2110.5,2110.1,0.47527825]
[1773433607974,0.002,2110.5,2110.1,0.47527825]
[1773433608380,0.48695765,2110.6,2110.3,0.47527825]
[1773433608580,1.18646174,2110.7,2110.3,0.47527825]
[1773433608825,1.18846174,2110.7,2110.3,0.47527825]
[1773433608994,0.48895765,2110.6,2110.1,1.1847325]
[1773433609198,0.48895765,2110.6,2110.2,0.47527825]
[1773433610487,0.48695765,2110.4,2110.0,2.25527825]
[1773433610702,0.48695765,2110.4,2110.0,2.96482906]
[1773433610906,0.48695765,2110.4,2110.1,0.47527825]
[1773433611582,0.48895765,2110.4,2110.0,1.78]
[1773433612198,0.48695765,2110.4,2110.0,2.25527825]
[1773433612730,1.65072635,2110.3,2110.0,2.25527825]
[1773433613210,0.46806067,2110.2,2110.0,1.78]
[1773433613417,0.46806067,2110.2,2109.7,2.03827825]
[1773433613611,0.46606067,2110.0,2109.7,2.03827825]
[1773433613986,0.46606067,2110.0,2109.5,1.18608351]
[1773433613987,0.46606067,2109.7,2109.1,0.001]
[1773433614309,0.46606067,2109.7,2108.7,0.47727825]
[1773433614509,0.46606067,2109.4,2108.8,1.741]
[1773433614713,0.7367265,2109.5,2108.8,2.21827825]
[1773433614714,0.46606067,2109.2,2108.8,2.21827825]
[1773433615124,0.7367265,2109.5,2108.9,0.47727825]
[1773433615125,1.65121969,2109.5,2108.9,0.47727825]
[1773433615288,0.46606067,2109.4,2108.9,0.47727825]
[1773433616727,0.46606067,2109.3,2108.9,1.66271475]
[1773433616907,0.46606067,2109.3,2109.0,0.47727825]
[1773433617102,0.46606067,2109.3,2108.9,1.18543102]
[1773433617401,0.46606067,2109.3,2108.8,3.40376677]
[1773433617993,0.46606067,2109.3,2108.8,2.21827825]
[1773433618917,1.65134418,2109.2,2108.8,2.21827825]
[1773433619125,0.46606067,2109.2,2108.8,3.40377346]
[1773433619321,0.7367265,2109.5,2109.0,0.47727825]
[1773433619322,1.65122331,2109.5,2109.0,0.47727825]
[1773433619696,0.46606067,2109.4,2109.0,0.47727825]
[1773433620023,0.46606067,2109.4,2109.1,0.001]
[1773433621132,0.46606067,2109.3,2109.0,0.37827825]
[1773433621290,0.46606067,2109.3,2108.9,1.56472857]
[1773433621824,0.46606067,2109.5,2109.0,0.37827825]
[1773433623122,1.65123149,2109.5,2109.0,0.37827825]
[1773433623428,0.46606067,2109.4,2109.0,0.37827825]
[1773433625331,1.65123647,2109.4,2109.0,0.37827825]
[1773433626927,0.46606067,2109.3,2108.9,0.001]
[1773433627237,0.46606067,2109.3,2109.0,1.763]
[1773433627758,0.46606067,2109.3,1976.4,0.00770797]
[1773433627759,0.46606067,2108.9,2108.2,0.37827825]
[1773433627895,0.46606067,2108.9,2108.2,0.001]
[1773433628098,0.46606067,2108.7,2108.2,0.001]
[1773433628397,0.46606067,2108.7,2108.0,0.37827825]
[1773433628597,0.46606067,2108.7,2108.1,0.001]
[1773433628798,0.46606067,2108.7,2108.2,1.75]
[1773433629248,0.46606067,2108.7,2108.1,0.001]
[1773433629534,0.46606067,2108.7,2108.3,1.753]
[1773433630008,0.46606067,2108.5,2108.3,1.753]
[1773433631724,0.46606067,2108.5,2107.9,0.37827825]
[1773433631931,0.46606067,2108.5,2108.0,0.04843833]
[1773433632424,1.1857122,2108.5,2108.0,0.04843833]
[1773433632628,0.46606067,2108.4,2108.0,0.04843833]
[1773433633130,0.46606067,2108.4,2108.1,1.764]
[1773433633333,0.46606067,2109.0,2108.4,0.47499988]
[1773433633629,0.46606067,2108.9,2108.3,0.001]
[1773433634606,0.46606067,2108.7,2108.3,0.001]
[1773433634796,0.46606067,2109.0,2108.4,0.47599988]
[1773433635014,0.46606067,2109.0,2108.6,0.47499988]
[1773433635732,1.65338775,2109.2,2108.7,0.48308939]
[1773433635926,0.002,2109.2,2108.8,0.48308939]
[1773433636131,0.002,2109.2,2108.9,2.25508939]
[1773433637217,0.002,2109.2,2108.9,1.773]
[1773433637404,0.46806067,2109.2,2109.0,1.776]
[1773433637605,0.46806067,2109.2,2108.5,0.48208939]
[1773433637798,0.46806067,2109.2,2108.6,0.001]
[1773433638725,1.65140038,2109.1,2108.7,1.778]
[1773433641332,0.4859918,2109.0,2108.6,0.001]
[1773433641522,0.4859918,2109.0,2108.8,1.782]
[1773433641836,0.4859918,2109.0,2108.9,1.782]
[1773433642202,0.4859918,2109.0,2108.5,0.48208939]
[1773433642402,0.4859918,2109.0,2108.6,0.001]
[1773433642603,1.18533971,2109.1,2108.6,0.54392193]
[1773433643341,1.18533971,2109.1,2108.6,1.72950515]
[1773433643646,1.18533971,2109.1,2108.7,2.2794971]
[1773433643835,1.67133151,2109.1,2108.7,2.2794971]
[1773433644139,1.67330956,2109.2,2108.8,0.4964971]
[1773433644310,1.67330956,2109.2,2108.8,0.001]
[1773433644514,0.4879918,2109.2,2108.8,0.001]
[1773433644924,1.673279,2109.2,2108.8,0.001]
[1773433645543,0.4879918,2109.2,2108.8,0.4964971]
[1773433645838,0.002,2109.2,2108.8,0.4964971]
[1773433646386,0.002,2109.2,2108.8,0.4974971]
[1773433646521,0.002,2108.9,2108.8,0.4974971]
[1773433647840,0.002,2108.9,2108.8,1.68300544]
[1773433648205,0.001,2108.9,2108.8,1.68200544]
[1773433649708,1.57622266,2109.3,2108.8,1.68200544]
[1773433650951,1.57622266,2109.3,2108.9,0.4954971]
[1773433652648,1.67123056,2109.3,2108.9,0.4954971]
[1773433652834,0.4879918,2109.4,2108.9,0.4954971]
[1773433654762,0.4879918,2109.4,2108.9,1.68090258]
[1773433655062,1.67121912,2109.3,2108.9,0.4954971]
[1773433658244,0.4859918,2109.2,2109.0,1.792]
[1773433659263,1.67121912,2109.3,2109.0,2.2874971]
[1773433660660,1.67121912,2109.3,2109.1,0.001]
[1773433660965,0.002,2109.2,2109.1,0.001]
[1773433661169,0.4879918,2109.2,2109.1,0.001]
[1773433661749,0.4879918,2109.2,2108.9,0.001]
[1773433662643,1.67133151,2109.1,2108.9,0.001]
[1773433662966,1.67133151,2109.1,2109.0,1.787]
[1773433666677,0.49077964,2109.0,2108.7,0.44656345]
[1773433667566,1.67618424,2109.0,2108.7,0.44656345]
[1773433667970,1.67618424,2109.0,2108.8,1.789]
[1773433668905,1.67615847,2109.1,2108.8,1.789]
[1773433669180,1.67615847,2109.1,2108.8,2.23556345]
[1773433669777,1.18731705,2109.2,2108.9,0.44656345]
[1773433670143,1.67809669,2109.2,2108.9,0.44656345]
[1773433670345,1.67809669,2109.2,2108.8,1.789]
[1773433670759,0.49077964,2109.1,2108.8,1.789]
[1773433670967,0.49077964,2109.1,2108.8,2.23556345]
[1773433671775,1.65567932,2109.0,2108.9,1.79]
[1773433671977,0.4702834,2109.0,2108.9,1.79]
[1773433672470,1.65565627,2109.1,2108.9,1.79]
[1773433672645,1.65565627,2109.1,2109.0,0.001]
[1773433672848,1.65565627,2109.1,2109.0,1.79]
[1773433673048,1.65565627,2109.1,2108.8,0.001]
[1773433674176,0.4702834,2109.0,2108.8,0.001]
[1773433674361,0.4702834,2109.0,2108.9,1.791]
[1773433674980,0.4702834,2109.0,2108.8,0.001]
[1773433676264,0.4702834,2109.0,2108.9,1.791]
[1773433676584,1.65567932,2109.0,2108.9,1.791]
[1773433680177,1.65567932,2109.0,2108.8,0.001]
[1773433681457,1.65567932,2109.0,2108.9,1.791]
[1773433682088,1.65567932,2109.0,2108.8,0.001]
[1773433682998,1.65759674,2109.2,2108.8,0.44756345]
[1773433683787,1.65759674,2109.2,2108.9,1.791]
[1773433683955,1.65759674,2109.2,2108.9,2.2791523]
[1773433684161,1.18731334,2109.2,2108.9,2.2791523]
[1773433684954,1.18731334,2109.2,2109.0,0.001]
[1773433685355,0.002,2109.2,2109.0,0.4891523]
[1773433685989,0.002,2109.4,2109.1,0.4881523]
[1773433686182,0.0012,2109.5,2109.1,0.4881523]
[1773433686382,0.0012,2109.5,2109.1,0.4873523]
[1773433687171,0.4702834,2110.0,2109.3,0.4881523]
[1773433687374,1.65513858,2110.0,2109.3,0.4881523]
[1773433687694,0.4702834,2109.9,2109.4,2.2791523]
[1773433688490,0.4702834,2109.7,2109.0,0.4891523]
[1773433688695,0.4702834,2109.7,2109.0,1.67454196]
[1773433688895,0.4702834,2109.7,2109.1,0.4881523]
[1773433689801,0.4702834,2109.5,2109.2,1.779]
[1773433690002,1.18505877,2109.6,2109.3,0.4881523]
[1773433690684,1.65534217,2109.6,2109.3,0.4881523]
[1773433691476,0.4702834,2109.5,2109.1,0.4881523]
[1773433691672,0.4702834,2109.5,2109.0,0.001]
[1773433691876,0.4702834,2109.3,2109.0,0.001]
[1773433693307,0.4702834,2109.3,2109.1,1.767]
[1773433694088,1.18528351,2109.2,2109.0,0.001]
[1773433694486,5.21121068,2109.3,2109.0,0.53656813]
[1773433694487,1.65555355,2109.3,2109.0,0.53656813]
[1773433695510,1.65555355,2109.3,2109.0,0.4891523]
[1773433696010,1.65555355,2109.3,2109.1,1.772]
[1773433697108,1.65555355,2109.3,2109.1,1.773]
[1773433697421,0.002,2109.1,2109.0,0.4891523]
[1773433698208,0.002,2109.1,2109.0,0.001]
[1773433699119,0.002,2109.1,2109.0,1.777]
[1773433700116,0.002,2109.1,2109.0,2.2651523]
[1773433700992,0.002,2109.1,2109.0,1.779]
[1773433701313,0.49664594,2109.1,2108.9,0.001]
[1773433702220,1.68198707,2109.1,2108.9,0.001]
[1773433703014,0.49664594,2109.1,2109.0,1.78]
[1773433703520,0.002,2109.1,2109.0,1.78]
[1773433704121,1.18733971,2109.1,2109.0,1.78]
[1773433704291,1.18733971,2109.1,2108.9,0.001]
[1773433706125,1.18733971,2109.1,2109.0,1.782]
[1773433706455,1.18733971,2109.1,2108.9,0.001]
[1773433706456,0.002,2109.1,2108.9,0.001]
[1773433707525,0.002,2109.1,2108.9,0.46291858]
[1773433707892,4.74301672,2109.3,2109.0,0.46191858]
[1773433707893,0.49664594,2109.3,2109.0,0.46191858]
[1773433708098,1.68188225,2109.3,2109.0,0.46191858]
[1773433708308,1.68188225,2109.3,2109.1,1.783]
[1773433709314,1.68188225,2109.3,2109.0,0.46191858]
[1773433710240,1.68188225,2109.3,2109.1,0.001]
[1773433710417,1.68188225,2109.3,2109.0,0.46191858]
[1773433710728,0.002,2109.1,2109.0,0.46191858]
[1773433711318,0.002,2109.1,2109.0,2.24491858]
[1773433712305,0.002,2109.1,2109.0,1.783]
[1773433712510,0.002,2109.1,2108.9,0.001]
[1773433713321,1.18733971,2109.1,2108.9,0.46291858]
[1773433714137,1.68198565,2109.1,2108.8,0.001]
[1773433714327,0.49464594,2109.0,2108.6,0.46291858]
[1773433714705,0.49464594,2109.0,2108.7,1.784]
[1773433714905,0.49464594,2109.0,2108.7,2.24591858]
[1773433715240,1.68198565,2109.1,2108.7,2.24591858]
[1773433715428,1.18733971,2109.1,2108.8,0.46191858]
[1773433715729,1.18733971,2109.1,2108.8,0.50933891]
[1773433718333,1.18733971,2109.1,2108.8,0.46191858]
[1773433719137,1.68198565,2109.1,2108.8,0.46191858]
[1773433720304,1.68198565,2109.1,2108.7,1.784]
[1773433720611,1.68198565,2109.1,2108.7,2.24591858]
[1773433721034,0.49464594,2109.0,2108.7,2.24591858]
[1773433721714,0.49464594,2108.9,2108.6,0.46291858]
[1773433721910,0.49464594,2108.9,2108.6,1.64853877]
[1773433723137,0.49664594,2108.9,2108.7,1.784]
[1773433725434,0.002,2108.9,2108.7,2.96953296]
[1773433726142,0.002,2108.9,2108.7,3.46125797]
[1773433726647,0.4782164,2109.1,2108.7,3.46125797]
[1773433726845,0.4782164,2109.1,2108.8,0.49172501]
[1773433726846,0.002,2109.1,2108.8,0.49172501]
[1773433727044,0.002,2109.1,2109.0,0.49172501]
[1773433727747,0.002,2109.1,2109.0,1.67712093]
[1773433727939,0.002,2109.3,2109.1,0.49172501]
[1773433728741,0.002,2109.3,2109.2,1.785]
[1773433730355,1.18708264,2109.6,2109.3,0.49172501]
[1773433730356,0.4782164,2109.6,2109.3,0.49172501]
[1773433730844,0.4762164,2109.5,2109.2,0.49172501]
[1773433732133,0.4762164,2109.5,2109.3,1.785]
[1773433733053,0.4762164,2109.5,2109.1,1.18531023]
[1773433733753,0.4762164,2109.5,2109.1,1.68318861]
[1773433734652,0.4762164,2109.5,2109.2,1.786]
[1773433736051,0.4762164,2109.5,2109.3,0.001]
[1773433736549,1.66137757,2109.5,2109.3,0.001]
[1773433736748,0.45518743,2109.4,2109.2,1.786]
[1773433743656,0.002,2109.5,2109.2,3.46915869]
[1773433743852,0.002,2109.5,2109.2,2.28387838]
[1773433744056,0.45718743,2109.5,2109.2,2.28387838]
[1773433747465,1.64230423,2109.5,2109.2,2.28387838]
[1773433747845,0.45718743,2109.5,2109.2,2.28387838]
[1773433749070,1.6423079,2109.5,2109.2,2.28387838]
[1773433749550,0.45718743,2109.5,2109.2,2.28387838]
[1773433750069,0.45718743,2109.5,2109.4,0.001]
[1773433750258,0.002,2109.3,2109.2,2.28387838]
[1773433752069,0.45718743,2109.3,2109.1,0.001]
[1773433752241,0.45718743,2109.3,2109.2,1.789]
[1773433754370,0.002,2109.3,2109.2,1.789]
[1773433756343,0.45718743,2109.3,2109.1,0.001]
[1773433756853,0.002,2109.3,2109.1,0.001]
[1773433757055,0.002,2109.3,2109.1,0.49887838]
[1773433757555,0.002,2109.3,2109.2,1.789]
[1773433760375,0.45718743,2109.3,2109.2,1.789]
[1773433763672,0.45718743,2109.3,2109.1,0.001]
[1773433764857,0.002,2109.2,2109.1,0.001]
[1773433765051,0.002,2109.2,2109.1,1.791]
[1773433769978,0.45237336,2109.2,2109.1,1.791]
[1773433770274,0.45037336,2109.1,2108.8,0.001]
[1773433770581,0.45237336,2109.2,2108.8,1.64510491]
[1773433770876,0.002,2109.2,2108.9,1.64403557]
[1773433771261,0.002,2109.2,2109.0,1.787]
[1773433771484,0.002,2109.4,2109.1,0.45859856]
[1773433772881,0.45237336,2109.4,2109.0,1.787]
[1773433777893,0.45037336,2109.3,2109.0,2.24559856]
[1773433779283,0.45037336,2109.3,2109.2,0.001]
[1773433779464,0.45037336,2109.3,2109.0,1.787]
[1773433779664,0.45237336,2109.2,2109.0,1.787]
[1773433779866,0.45237336,2109.2,2109.0,1.788]
[1773433790498,0.45237336,2109.2,2109.0,0.001]
[1773433790691,0.45237336,2109.2,2109.1,1.792]
[1773433795880,0.45534403,2109.4,2109.1,3.43578804]
[1773433796086,0.45534403,2109.4,2109.1,2.2504892]
[1773433797078,1.64051786,2109.4,2109.1,2.2504892]
[1773433800395,1.64051786,2109.4,2109.2,0.4584892]
[1773433800396,0.002,2109.4,2109.2,0.4584892]
[1773433804916,0.002,2109.4,2109.2,0.4594892]
[1773433817529,0.002,2109.4,2109.2,0.001]
[1773433820105,0.002,2109.4,2109.2,0.4594892]
[1773433822737,0.002,2109.4,2109.2,1.64473185]
[1773433822937,0.002,2109.6,2109.3,0.49190651]
[1773433823142,0.002,2109.8,2109.2,1.18624265]
[1773433823143,0.002,2109.8,2109.4,0.49190651]
[1773433823914,0.002,2109.8,2109.6,0.49190651]
[1773433824157,0.002,2109.8,2109.7,1.797]
[1773433825048,1.1848088,2110.1,2109.8,0.49190651]
[1773433825049,0.48168279,2110.1,2109.8,0.49190651]
[1773433825354,4.73856749,2110.4,2109.8,0.49190651]
[1773433825355,0.48168279,2110.2,2109.8,0.49190651]
[1773433826017,1.18465817,2110.4,2109.9,0.49190651]
[1773433826214,0.48168279,2110.4,2109.9,0.49190651]
[1773433827316,4.7380882,2110.6,2110.0,0.49190651]
[1773433827317,0.48168279,2110.6,2110.0,0.49190651]
[1773433827528,0.48168279,2110.5,2109.8,1.67681021]
[1773433827713,0.48168279,2110.5,2110.1,1.798]
[1773433828310,0.48168279,2110.4,2110.1,1.798]
[1773433831520,0.002,2110.2,2110.1,1.798]
[1773433832415,0.002,2110.2,2109.7,6.3029963]
[1773433832416,0.002,2110.2,2109.9,1.67679383]
[1773433832620,0.002,2110.2,2109.9,0.49190651]
[1773433832931,0.002,2110.2,2109.9,1.67678739]
[1773433833112,0.002,2110.2,2110.0,0.49190651]
[1773433833313,0.002,2110.2,2109.9,0.49190651]
[1773433833514,0.002,2110.2,2110.0,1.798]
[1773433834340,0.48368279,2110.2,2110.0,1.798]
[1773433834546,0.48368279,2110.2,2109.6,0.49190651]
[1773433835757,0.48168279,2110.1,2109.7,3.46690911]
[1773433836238,0.48168279,2110.1,2109.7,2.28190651]
[1773433836939,0.48168279,2110.1,2109.6,1.67692376]
[1773433837140,0.48168279,2110.1,2109.8,1.791]
[1773433839446,0.48168279,2110.0,2109.8,1.791]
[1773433839644,0.48168279,2110.0,2109.6,0.49190651]
[1773433839832,0.48168279,2109.9,2109.4,0.49290651]
[1773433840037,0.48168279,2109.9,2109.4,0.001]
[1773433840461,0.48168279,2109.9,2109.2,1.67818352]
[1773433841259,0.48168279,2109.9,2109.3,1.79]
[1773433841463,0.48168279,2109.7,2109.3,2.28190651]
[1773433843046,0.48168279,2109.7,2109.5,0.001]
[1773433843640,1.66670607,2109.7,2109.5,0.001]
[1773433844028,1.18502328,2109.7,2109.5,0.001]
[1773433844233,0.48168279,2109.6,2109.5,0.001]
[1773433844950,0.48168279,2109.6,2109.3,2.28290651]
[1773433848931,0.48168279,2109.6,2109.3,1.791]
[1773433849128,0.48822572,2109.5,2109.3,1.791]
[1773433856155,0.002,2109.4,2109.3,1.791]
[1773433858040,0.002,2109.4,2109.3,2.27333999]
[1773433858259,0.002,2109.4,2109.3,3.45856731]
[1773433858649,0.002,2109.4,2109.3,2.27333999]
[1773433860044,0.45266656,2109.4,2109.2,0.001]
[1773433860251,0.73715753,2109.3,2109.1,0.001]
[1773433860557,0.45066656,2109.2,2108.9,0.001]
[1773433860758,0.45066656,2109.2,2108.8,0.001]
[1773433861130,0.45066656,2109.2,2108.6,1.18558769]
[1773433861131,0.45066656,2109.0,2108.5,1.66801423]
[1773433861331,0.45066656,2109.0,2108.6,1.791]
[1773433861635,0.45066656,2109.0,2108.4,1.18568903]
[1773433861961,0.45066656,2108.8,2108.4,1.66802902]
[1773433862960,0.45066656,2108.8,2108.5,1.792]
[1773433864785,0.45066656,2108.7,2108.6,1.794]
[1773433864934,0.45066656,2108.7,2108.3,0.48233999]
[1773433866278,0.45066656,2108.7,2108.4,2.27733999]
[1773433866574,0.45066656,2108.9,2108.5,1.66799521]
[1773433866774,0.45066656,2108.8,2108.6,1.795]
[1773433866974,0.45066656,2108.8,2108.3,0.48233999]
[1773433868577,0.45066656,2108.8,2108.4,1.796]
[1773433869074,0.45066656,2108.7,2108.4,1.796]
[1773433869444,0.45066656,2108.7,2108.5,0.001]
[1773433869670,0.002,2108.6,2108.5,0.001]
[1773433870747,0.45266656,2108.6,2108.5,0.001]
[1773433873090,1.63828735,2108.6,2108.4,1.796]
[1773433873376,0.45266656,2108.6,2108.4,1.796]
[1773433875089,0.45066656,2108.5,2108.3,0.001]
[1773433876589,0.45066656,2108.5,2108.4,1.798]
[1773433877765,0.45066656,2108.4,2108.3,0.001]
[1773433878981,0.45066656,2108.4,2108.3,1.8]
[1773433879751,0.002,2108.6,2108.3,1.8]
[1773433879988,0.45066656,2108.5,2108.3,1.8]
[1773433880190,0.45266656,2108.6,2108.3,3.46811239]
[1773433881579,0.002,2108.6,2108.3,3.46811239]
[1773433882282,0.002,2108.6,2108.5,0.001]
[1773433891372,0.002,2108.8,2108.6,0.46619604]
[1773433893693,0.002,2108.8,2108.6,1.65178499]
[1773433895279,0.002,2108.8,2108.6,0.46619604]
[1773433896401,0.49036788,2108.8,2108.5,0.001]
[1773433896890,0.49036788,2108.8,2108.5,0.46719604]
[1773433897772,0.49036788,2108.8,2108.5,1.65286653]
[1773433898701,0.49036788,2108.8,2108.5,0.46719604]
[1773433902204,0.49036788,2108.8,2108.5,1.65285375]
[1773433903576,0.49036788,2108.8,2108.5,0.46719604]
[1773433905804,0.49036788,2108.8,2108.5,1.65286962]
[1773433906200,0.002,2108.8,2108.5,1.18667358]
[1773433906406,0.002,2108.8,2108.6,0.48425294]
[1773433906882,0.002,2108.8,2108.7,0.001]
[1773433911612,0.49023796,2108.8,2108.7,0.001]
[1773433914918,0.002,2108.8,2108.7,0.001]
[1773433915104,0.002,2108.9,2108.7,1.64398461]
[1773433916644,0.002,2108.9,2108.8,0.45742005]
[1773433917328,0.002,2108.9,2108.7,0.001]
[1773433917803,0.002,2108.9,2108.7,0.45842005]